fUST/lending_fUST_20250603
["ID","MTS","AMOUNT","RATE_DAILY","PERIOD"]
[363962452,1748947844571,-440.0,0.0001726,2]
[363962454,1748947844580,-440.0,0.0001726,2]
[363962456,1748947844589,-440.0,0.0001726,2]
[363962458,1748947844599,-440.0,0.0001726,2]
[363962460,1748947844608,-1447.69,0.0001726,2]
[363962462,1748947844617,-440.0,0.0001726,2]
[363962464,1748947844626,-440.0,0.0001726,2]
[363962466,1748947844636,-440.0,0.0001726,2]
[363962467,1748947844646,-449.74933918,0.0001726,2]
[363962470,1748947844655,-440.0,0.0001726,2]
[363962472,1748947844665,-440.0,0.0001726,2]
[363962473,1748947844675,-440.0,0.0001726,2]
[363962476,1748947844684,-440.0,0.0001726,2]
[363962477,1748947844694,-1785.19,0.0001726,2]
[363962480,1748947844704,-440.0,0.0001726,2]
[363962482,1748947844713,-440.0,0.0001726,2]
[363962484,1748947844724,-440.0,0.0001726,2]
[363962486,1748947844734,-490.09,0.0001726,2]
[363962488,1748947844743,-440.0,0.0001726,2]
[363962490,1748947844752,-619.81,0.0001726,2]
[363962492,1748947844762,-440.0,0.0001726,2]
[363962494,1748947844772,-2648.57,0.0001726,2]
[363962496,1748947844781,-595.28,0.0001726,2]
[363962498,1748947844791,-440.0,0.0001726,2]
[363962500,1748947844800,-440.0,0.0001726,2]
[363962502,1748947844810,-2410.62,0.0001726,2]
[363962504,1748947844820,-400.0,0.0001726,2]
[363962506,1748947844829,-440.0,0.0001726,2]
[363962508,1748947844838,-440.0,0.0001726,2]
[363962510,1748947844847,-4321.72,0.0001726,2]
[363962512,1748947844857,-450.66,0.0001726,2]
[363962514,1748947844866,-440.0,0.0001726,2]
[363962516,1748947844875,-440.0,0.0001726,2]
[363962518,1748947844884,-440.0,0.0001726,2]
[363962520,1748947844894,-440.0,0.0001726,2]
[363962522,1748947844903,-897.07,0.0001726,2]
[363962524,1748947844912,-402.7260579,0.0001726,2]
[363962526,1748947844921,-2663.09,0.0001726,2]
[363962527,1748947844934,-852.36,0.0001726,2]
[363962530,1748947844944,-440.0,0.0001726,2]
[363962531,1748947844953,-1482.71,0.0001726,2]
[363962538,1748947845060,-440.0,0.0001726,2]
[363962539,1748947845069,-440.0,0.0001726,2]
[363962540,1748947845079,-636.06,0.0001726,2]
[363962541,1748947845089,-220.41000086,0.0001726,2]
[363962542,1748947845099,-440.0,0.0001726,2]
[363962543,1748947845108,-440.0,0.0001726,2]
[363962544,1748947845118,-440.0,0.0001726,2]
[363962545,1748947845128,-440.0,0.0001726,2]
[363962546,1748947845139,-2135.98,0.0001726,2]
[363962547,1748947845149,-440.0,0.0001726,2]
[363962549,1748947845159,-440.0,0.0001726,2]
[363962551,1748947845169,-400.0,0.0001726,2]
[363962553,1748947845181,-440.0,0.0001726,2]
[363962555,1748947845191,-404.36720225,0.0001726,2]
[363962557,1748947845203,-905.57,0.0001726,2]
[363962559,1748947845212,-440.0,0.0001726,2]
[363962561,1748947845222,-415.35967499,0.0001726,2]
[363962563,1748947845232,-440.0,0.0001726,2]
[363962565,1748947845242,-808.85,0.0001726,2]
[363962567,1748947845253,-440.0,0.0001726,2]
[363962569,1748947845262,-400.0,0.0001726,2]
[363962571,1748947845272,-380.0,0.0001726,2]
[363962573,1748947845281,-440.0,0.0001726,2]
[363962575,1748947845290,-1071.18,0.0001726,2]
[363962577,1748947845300,-645.4,0.0001726,2]
[363962579,1748947845310,-440.0,0.0001726,2]
[363962581,1748947845319,-440.0,0.0001726,2]
[363962584,1748947845328,-440.0,0.0001726,2]
[363962587,1748947845337,-440.0,0.0001726,2]
[363962589,1748947845347,-440.0,0.0001726,2]
[363962591,1748947845357,-440.0,0.0001726,2]
[363962593,1748947845367,-440.0,0.0001726,2]
[363962595,1748947845376,-440.0,0.0001726,2]
[363962597,1748947845385,-440.0,0.0001726,2]
[363962599,1748947845395,-440.0,0.0001726,2]
[363962601,1748947845405,-440.0,0.0001726,2]
[363962603,1748947845415,-682.03,0.0001726,2]
[363962605,1748947845424,-470.49,0.0001726,2]
[363962607,1748947845434,-957.6,0.0001726,2]
[363962609,1748947845443,-1228.71,0.0001726,2]
[363962611,1748947845453,-440.0,0.0001726,2]
[363962613,1748947845463,-440.0,0.0001726,2]
[363962615,1748947845472,-440.0,0.0001726,2]
[363962617,1748947845481,-440.0,0.0001726,2]
[363962619,1748947845490,-440.0,0.0001726,2]
[363962621,1748947845499,-440.0,0.0001726,2]
[363962623,1748947845509,-556.38,0.0001726,2]
[363962625,1748947845519,-440.0,0.0001726,2]
[363962627,1748947845529,-1121.18,0.0001726,2]
[363962628,1748947845537,-440.0,0.0001726,2]
[363962632,1748947845548,-540.06,0.0001726,2]
[363962634,1748947845557,-400.0,0.0001726,2]
[363962637,1748947845567,-1013.06,0.0001726,2]
[363962639,1748947845577,-181.05793227,0.00017446,2]
[363962640,1748947845586,-2379.76293757,0.00017452,2]
[363962643,1748947845596,-440.0,0.00017534,2]
[363962645,1748947845606,-440.0,0.00017534,2]
[363962647,1748947845615,-440.0,0.00017534,2]
[363962649,1748947845624,-440.0,0.00017534,2]
[363962651,1748947845634,-440.0,0.00017534,2]
[363962653,1748947845644,-484.01,0.00017534,2]
[363962655,1748947845654,-440.0,0.00017534,2]
[363962657,1748947845664,-440.0,0.00017534,2]
[363962658,1748947845673,-440.0,0.00017534,2]
[363962660,1748947845683,-440.0,0.00017534,2]
[363962663,1748947845694,-440.0,0.00017534,2]
[363962665,1748947845704,-440.0,0.00017534,2]
[363962667,1748947845713,-373.870631,0.00017534,2]
[363962668,1748947845723,-455.41,0.00017534,2]
[363962670,1748947845733,-440.0,0.00017534,2]
[363962672,1748947845743,-440.0,0.00017534,2]
[363962674,1748947845753,-440.0,0.00017534,2]
[363962676,1748947845762,-316.47053305,0.00017534,2]
[363962678,1748947845771,-440.0,0.00017534,2]
[363962680,1748947845780,-540.16,0.00017534,2]
[363962682,1748947845791,-440.0,0.00017534,2]
[363962684,1748947845801,-440.0,0.00017534,2]
[363962686,1748947845810,-440.0,0.00017534,2]
[363962688,1748947845819,-532.1,0.00017534,2]
[363962690,1748947845829,-440.0,0.00017534,2]
[363962692,1748947845839,-440.0,0.00017534,2]
[363962693,1748947845848,-463.77,0.00017534,2]
[363962695,1748947845858,-390.0,0.00017534,2]
[363962697,1748947845867,-440.0,0.00017534,2]
[363962699,1748947845876,-440.0,0.00017534,2]
[363962701,1748947845886,-440.0,0.00017534,2]
[363962703,1748947845894,-571.26777517,0.00017534,2]
[363962705,1748947845903,-440.0,0.00017534,2]
[363962707,1748947845911,-440.0,0.00017534,2]
[363962709,1748947845921,-257.05067932,0.00017534,2]
[363962711,1748947845934,-440.0,0.00017534,2]
[363962713,1748947845944,-440.0,0.00017534,2]
[363962715,1748947845953,-440.0,0.00017534,2]
[363962717,1748947845963,-440.0,0.00017534,2]
[363962719,1748947845974,-390.0,0.00017534,2]
[363962721,1748947845983,-440.0,0.00017534,2]
[363962723,1748947845995,-440.0,0.00017534,2]
[363962725,1748947846006,-440.0,0.00017534,2]
[363962727,1748947846015,-440.0,0.00017534,2]
[363962729,1748947846025,-455.96,0.00017534,2]
[363962731,1748947846036,-2077.18,0.00017534,2]
[363962733,1748947846045,-440.0,0.00017534,2]
[363962735,1748947846054,-440.0,0.00017534,2]
[363962737,1748947846064,-440.0,0.00017534,2]
[363962738,1748947846076,-440.0,0.00017534,2]
[363962740,1748947846086,-440.0,0.00017534,2]
[363962742,1748947846096,-440.0,0.00017534,2]
[363962744,1748947846106,-472.3,0.00017534,2]
[363962746,1748947846115,-390.0,0.00017534,2]
[363962748,1748947846124,-15582.25,0.00017534,2]
[363962750,1748947846135,-440.0,0.00017534,2]
[363962752,1748947846145,-440.0,0.00017534,2]
[363962754,1748947846156,-440.0,0.00017534,2]
[363962756,1748947846166,-440.0,0.00017534,2]
[363962758,1748947846174,-440.0,0.00017534,2]
[363962760,1748947846184,-1447.69,0.00017534,2]
[363962762,1748947846193,-440.0,0.00017534,2]
[363962764,1748947846205,-494.62657924,0.00017534,2]
[363962766,1748947846214,-440.0,0.00017534,2]
[363962768,1748947846224,-440.0,0.00017534,2]
[363962770,1748947846233,-440.0,0.00017534,2]
[363962772,1748947846246,-440.0,0.00017534,2]
[363962774,1748947846258,-440.0,0.00017534,2]
[363962776,1748947846267,-1785.19,0.00017534,2]
[363962778,1748947846279,-440.0,0.00017534,2]
[363962780,1748947846289,-440.0,0.00017534,2]
[363962782,1748947846299,-440.0,0.00017534,2]
[363962784,1748947846309,-490.09,0.00017534,2]
[363962786,1748947846318,-440.0,0.00017534,2]
[363962788,1748947846327,-619.81,0.00017534,2]
[363962790,1748947846337,-440.0,0.00017534,2]
[363962792,1748947846346,-2648.57,0.00017534,2]
[363962794,1748947846356,-595.28,0.00017534,2]
[363962796,1748947846365,-440.0,0.00017534,2]
[363962798,1748947846375,-440.0,0.00017534,2]
[363962800,1748947846386,-2410.62,0.00017534,2]
[363962802,1748947846396,-440.0,0.00017534,2]
[363962804,1748947846405,-440.0,0.00017534,2]
[363962806,1748947846415,-4321.72,0.00017534,2]
[363962808,1748947846424,-450.66,0.00017534,2]
[363962810,1748947846434,-440.0,0.00017534,2]
[363962812,1748947846444,-370.0,0.00017534,2]
[363962814,1748947846454,-166.913369,0.00017534,2]
[363962816,1748947846463,-440.0,0.00017534,2]
[363962818,1748947846472,-897.07,0.00017534,2]
[363962820,1748947846482,-2663.09,0.00017534,2]
[363962822,1748947846492,-852.36,0.00017534,2]
[363962823,1748947846501,-440.0,0.00017534,2]
[363962825,1748947846511,-440.0,0.00017534,2]
[363962827,1748947846521,-1482.71,0.00017534,2]
[363962829,1748947846530,-440.0,0.00017534,2]
[363962831,1748947846540,-636.06,0.00017534,2]
[363962833,1748947846549,-440.0,0.00017534,2]
[363962835,1748947846558,-440.0,0.00017534,2]
[363962837,1748947846569,-440.0,0.00017534,2]
[363962839,1748947846579,-345.08078176,0.00017534,2]
[363962840,1748947846590,-2135.98,0.00017534,2]
[363962842,1748947846599,-440.0,0.00017534,2]
[363962844,1748947846609,-440.0,0.00017534,2]
[363962846,1748947846618,-440.0,0.00017534,2]
[363962848,1748947846628,-905.57,0.00017534,2]
[363962850,1748947846638,-440.0,0.00017534,2]
[363962852,1748947846648,-440.0,0.00017534,2]
[363962854,1748947846658,-808.85,0.00017534,2]
[363962856,1748947846667,-440.0,0.00017534,2]
[363962858,1748947846677,-488.70991874,0.00017534,2]
[363962860,1748947846687,-1071.18,0.00017534,2]
[363962862,1748947846696,-440.0,0.00017534,2]
[363962864,1748947846706,-645.4,0.00017534,2]
[363962865,1748947846715,-440.0,0.00017534,2]
[363962867,1748947846724,-440.0,0.00017534,2]
[363962869,1748947846734,-400.0,0.00017534,2]
[363962871,1748947846745,-440.0,0.00017534,2]
[363962873,1748947846755,-440.0,0.00017534,2]
[363962875,1748947846766,-440.0,0.00017534,2]
[363962877,1748947846777,-440.0,0.00017534,2]
[363962879,1748947846788,-440.0,0.00017534,2]
[363962881,1748947846798,-440.0,0.00017534,2]
[363962883,1748947846809,-440.0,0.00017534,2]
[363962885,1748947846818,-682.03,0.00017534,2]
[363962887,1748947846828,-470.49,0.00017534,2]
[363962889,1748947846839,-957.6,0.00017534,2]
[363962891,1748947846850,-1228.71,0.00017534,2]
[363962893,1748947846859,-280.47307538,0.00017534,2]
[363962895,1748947846868,-440.0,0.00017534,2]
[363962897,1748947846877,-440.0,0.00017534,2]
[363962899,1748947846887,-410.0,0.00017534,2]
[363962901,1748947846896,-440.0,0.00017534,2]
[363962903,1748947846907,-440.0,0.00017534,2]
[363962904,1748947846916,-556.38,0.00017534,2]
[363962905,1748947846928,-440.0,0.00017534,2]
[363962906,1748947846937,-1121.18,0.00017534,2]
[363962907,1748947846947,-440.0,0.00017534,2]
[363962908,1748947846956,-540.06,0.00017534,2]
[363962909,1748947846965,-1013.06,0.00017534,2]
[363962910,1748947846975,-503.06437526,0.00017594,2]
[363962911,1748947846984,-2379.76293757,0.00017728,2]
[363962912,1748947846993,-1000.0,0.00017744,2]
[363962913,1748947847003,-2165.68,0.00017798,3]
[363962914,1748947847012,-1082.84,0.00017798,3]
[363962915,1748947847021,-541.42,0.00017798,3]
[363962916,1748947847030,-160.0,0.00017807,2]
[363962917,1748947847040,-500.0,0.00017807,2]
[363962919,1748947847049,-500.0,0.00017807,2]
[363962921,1748947847059,-500.0,0.00017807,2]
[363962922,1748947847068,-500.0,0.00017807,2]
[363962924,1748947847077,-500.0,0.00017807,2]
[363962926,1748947847087,-500.0,0.00017807,2]
[363962928,1748947847096,-500.0,0.00017807,2]
[363962930,1748947847105,-500.0,0.00017807,2]
[363962932,1748947847115,-500.0,0.00017807,2]
[363962934,1748947847125,-500.0,0.00017807,2]
[363962936,1748947847135,-299.07905267,0.00017807,2]
[363962938,1748947847144,-500.0,0.00017807,2]
[363962940,1748947847154,-490.0,0.00017808,2]
[363962942,1748947847164,-544.32344527,0.00017808,2]
[363962944,1748947847174,-440.0,0.00017808,2]
[363962946,1748947847183,-440.0,0.00017808,2]
[363962948,1748947847193,-484.01,0.00017808,2]
[363962950,1748947847203,-369.56751369,0.00017808,2]
[363962952,1748947847212,-440.0,0.00017808,2]
[363962953,1748947847221,-440.0,0.00017808,2]
[363962954,1748947847230,-522.87577588,0.00017808,2]
[363962955,1748947847240,-440.0,0.00017808,2]
[363962966,1748947847345,-440.0,0.00017808,2]
[363962967,1748947847357,-440.0,0.00017808,2]
[363962968,1748947847366,-455.41,0.00017808,2]
[363962969,1748947847376,-440.0,0.00017808,2]
[363962971,1748947847386,-440.0,0.00017808,2]
[363962973,1748947847395,-440.0,0.00017808,2]
[363962974,1748947847406,-370.0,0.00017808,2]
[363962976,1748947847417,-540.16,0.00017808,2]
[363962978,1748947847427,-440.0,0.00017808,2]
[363962981,1748947847438,-440.0,0.00017808,2]
[363962983,1748947847448,-440.0,0.00017808,2]
[363962985,1748947847459,-532.1,0.00017808,2]
[363962987,1748947847470,-440.0,0.00017808,2]
[363962989,1748947847480,-330.0,0.00017808,2]
[363962990,1748947847490,-463.77,0.00017808,2]
[363962991,1748947847501,-440.0,0.00017808,2]
[363962993,1748947847510,-440.0,0.00017808,2]
[363962995,1748947847520,-440.0,0.00017808,2]
[363962997,1748947847530,-440.0,0.00017808,2]
[363962999,1748947847539,-440.0,0.00017808,2]
[363963001,1748947847548,-440.0,0.00017808,2]
[363963003,1748947847558,-440.0,0.00017808,2]
[363963005,1748947847567,-440.0,0.00017808,2]
[363963007,1748947847577,-440.0,0.00017808,2]
[363963009,1748947847587,-440.0,0.00017808,2]
[363963011,1748947847596,-370.0,0.00017808,2]
[363963013,1748947847607,-370.0,0.00017808,2]
[363963015,1748947847616,-440.0,0.00017808,2]
[363963017,1748947847627,-455.96,0.00017808,2]
[363963019,1748947847636,-2077.18,0.00017808,2]
[363963021,1748947847646,-380.0,0.00017808,2]
[363963023,1748947847655,-440.0,0.00017808,2]
[363963025,1748947847664,-440.0,0.00017808,2]
[363963027,1748947847674,-440.0,0.00017808,2]
[363963029,1748947847684,-153.62762939,0.00017808,2]
[363963031,1748947847694,-270.0,0.00017808,2]
[363963033,1748947847703,-472.3,0.00017808,2]
[363963035,1748947847713,-15582.25,0.00017808,2]
[363963037,1748947847723,-440.0,0.00017808,2]
[363963039,1748947847732,-440.0,0.00017808,2]
[363963041,1748947847742,-440.0,0.00017808,2]
[363963043,1748947847751,-440.0,0.00017808,2]
[363963045,1748947847761,-1447.69,0.00017808,2]
[363963047,1748947847771,-440.0,0.00017808,2]
[363963049,1748947847780,-440.0,0.00017808,2]
[363963051,1748947847790,-440.0,0.00017808,2]
[363963053,1748947847799,-440.0,0.00017808,2]
[363963054,1748947847808,-440.0,0.00017808,2]
[363963055,1748947847817,-380.0,0.00017808,2]
[363963056,1748947847827,-440.0,0.00017808,2]
[363963057,1748947847836,-1785.19,0.00017808,2]
[363963058,1748947847845,-440.0,0.00017808,2]
[363963059,1748947847855,-385.81428976,0.00017808,2]
[363963060,1748947847864,-440.0,0.00017808,2]
[363963061,1748947847874,-490.09,0.00017808,2]
[363963062,1748947847883,-440.0,0.00017808,2]
[363963063,1748947847893,-619.81,0.00017808,2]
[363963064,1748947847902,-440.0,0.00017808,2]
[363963065,1748947847911,-2648.57,0.00017808,2]
[363963066,1748947847921,-595.28,0.00017808,2]
[363963067,1748947847934,-440.0,0.00017808,2]
[363963068,1748947847944,-440.0,0.00017808,2]
[363963069,1748947847954,-2410.62,0.00017808,2]
[363963070,1748947847963,-454.5057878,0.00017808,2]
[363963071,1748947847975,-440.0,0.00017808,2]
[363963072,1748947847984,-4321.72,0.00017808,2]
[363963073,1748947847994,-450.66,0.00017808,2]
[363963074,1748947848007,-440.0,0.00017808,2]
[363963075,1748947848017,-440.0,0.00017808,2]
[363963076,1748947848026,-897.07,0.00017808,2]
[363963077,1748947848036,-2663.09,0.00017808,2]
[363963078,1748947848047,-852.36,0.00017808,2]
[363963079,1748947848056,-440.0,0.00017808,2]
[363963080,1748947848066,-440.0,0.00017808,2]
[363963081,1748947848076,-1482.71,0.00017808,2]
[363963082,1748947848087,-440.0,0.00017808,2]
[363963083,1748947848098,-636.06,0.00017808,2]
[363963084,1748947848108,-440.0,0.00017808,2]
[363963085,1748947848117,-440.0,0.00017808,2]
[363963086,1748947848127,-440.0,0.00017808,2]
[363963087,1748947848137,-2135.98,0.00017808,2]
[363963088,1748947848146,-440.0,0.00017808,2]
[363963089,1748947848156,-440.0,0.00017808,2]
[363963090,1748947848166,-440.0,0.00017808,2]
[363963091,1748947848176,-905.57,0.00017808,2]
[363963092,1748947848186,-440.0,0.00017808,2]
[363963093,1748947848195,-390.0,0.00017808,2]
[363963094,1748947848205,-808.85,0.00017808,2]
[363963095,1748947848215,-538.79,0.00017808,2]
[363963096,1748947848225,-1071.18,0.00017808,2]
[363963097,1748947848235,-419.40649766,0.00017808,2]
[363963098,1748947848246,-645.4,0.00017808,2]
[363963099,1748947848256,-440.0,0.00017808,2]
[363963100,1748947848266,-440.0,0.00017808,2]
[363963101,1748947848275,-440.0,0.00017808,2]
[363963102,1748947848285,-440.0,0.00017808,2]
[363963103,1748947848295,-390.0,0.00017808,2]
[363963104,1748947848305,-367.57500938,0.00017808,2]
[363963105,1748947848316,-440.0,0.00017808,2]
[363963106,1748947848326,-440.0,0.00017808,2]
[363963107,1748947848336,-440.0,0.00017808,2]
[363963108,1748947848346,-682.03,0.00017808,2]
[363963109,1748947848361,-470.49,0.00017808,2]
[363963110,1748947848371,-957.6,0.00017808,2]
[363963111,1748947848380,-1228.71,0.00017808,2]
[363963112,1748947848390,-440.0,0.00017808,2]
[363963113,1748947848401,-440.0,0.00017808,2]
[363963114,1748947848411,-440.0,0.00017808,2]
[363963115,1748947848422,-440.0,0.00017808,2]
[363963116,1748947848432,-556.38,0.00017808,2]
[363963118,1748947848442,-440.0,0.00017808,2]
[363963120,1748947848452,-1121.18,0.00017808,2]
[363963122,1748947848463,-440.0,0.00017808,2]
[363963124,1748947848473,-540.06,0.00017808,2]
[363963126,1748947848483,-1013.06,0.00017808,2]
[363963127,1748947848495,-151.0,0.000179,2]
[363963129,1748947848506,-420.0,0.00017952,2]
[363963131,1748947848516,-420.0,0.00017952,2]
[363963133,1748947848527,-2379.76293757,0.00018003,2]
[363963135,1748947848538,-160.0,0.00018055,2]
[363963137,1748947848548,-160.0,0.00018055,2]
[363963139,1748947848558,-160.0,0.00018055,2]
[363963141,1748947848568,-160.0,0.00018056,2]
[363963143,1748947848579,-160.0,0.00018056,2]
[363963145,1748947848590,-229.42821335,0.00018056,2]
[363963147,1748947848600,-212.86879254,0.00018056,2]
[363963149,1748947848610,-842.5625,0.00018056,2]
[363963151,1748947848620,-423.63107087,0.00018056,2]
[363963153,1748947848629,-160.0,0.00018056,2]
[363963155,1748947848639,-160.0,0.00018056,2]
[363963156,1748947848650,-12670.76136593,0.00018057,2]
[363963158,1748947848660,-440.0,0.00018082,2]
[363963160,1748947848670,-166.47044542,0.00018082,2]
[363963162,1748947848680,-484.01,0.00018082,2]
[363963164,1748947848690,-440.0,0.00018082,2]
[363963166,1748947848700,-532.46470638,0.00018082,2]
[363963168,1748947848709,-440.0,0.00018082,2]
[363963170,1748947848720,-333.35208697,0.00018082,2]
[363963172,1748947848732,-440.0,0.00018082,2]
[363963174,1748947848742,-455.41,0.00018082,2]
[363963175,1748947848752,-299.14307656,0.00018082,2]
[363963177,1748947848761,-440.0,0.00018082,2]
[363963179,1748947848771,-440.0,0.00018082,2]
[363963181,1748947848780,-540.16,0.00018082,2]
[363963183,1748947848790,-360.0,0.00018082,2]
[363963185,1748947848800,-440.0,0.00018082,2]
[363963187,1748947848810,-440.0,0.00018082,2]
[363963189,1748947848822,-532.1,0.00018082,2]
[363963191,1748947848831,-440.0,0.00018082,2]
[363963193,1748947848841,-463.77,0.00018082,2]
[363963195,1748947848851,-440.0,0.00018082,2]
[363963197,1748947848861,-440.0,0.00018082,2]
[363963199,1748947848870,-440.0,0.00018082,2]
[363963201,1748947848880,-440.0,0.00018082,2]
[363963203,1748947848890,-370.0,0.00018082,2]
[363963205,1748947848899,-440.0,0.00018082,2]
[363963207,1748947848909,-370.0,0.00018082,2]
[363963209,1748947848919,-440.0,0.00018082,2]
[363963210,1748947848930,-440.0,0.00018082,2]
[363963212,1748947848939,-440.0,0.00018082,2]
[363963214,1748947848949,-440.0,0.00018082,2]
[363963216,1748947848960,-455.96,0.00018082,2]
[363963218,1748947848971,-2077.18,0.00018082,2]
[363963221,1748947848982,-378.0068226,0.00018082,2]
[363963222,1748947848992,-440.0,0.00018082,2]
[363963224,1748947849002,-440.0,0.00018082,2]
[363963226,1748947849016,-472.3,0.00018082,2]
[363963229,1748947849027,-15582.25,0.00018082,2]
[363963230,1748947849037,-440.0,0.00018082,2]
[363963232,1748947849046,-440.0,0.00018082,2]
[363963234,1748947849056,-440.0,0.00018082,2]
[363963236,1748947849066,-440.0,0.00018082,2]
[363963238,1748947849076,-1447.69,0.00018082,2]
[363963240,1748947849085,-350.0,0.00018082,2]
[363963242,1748947849096,-574.14129115,0.00018082,2]
[363963244,1748947849107,-440.0,0.00018082,2]
[363963246,1748947849116,-440.0,0.00018082,2]
[363963248,1748947849126,-440.0,0.00018082,2]
[363963250,1748947849136,-440.0,0.00018082,2]
[363963252,1748947849147,-1785.19,0.00018082,2]
[363963254,1748947849156,-440.0,0.00018082,2]
[363963255,1748947849166,-440.0,0.00018082,2]
[363963257,1748947849175,-490.09,0.00018082,2]
[363963258,1748947849186,-440.0,0.00018082,2]
[363963260,1748947849196,-619.81,0.00018082,2]
[363963262,1748947849206,-440.0,0.00018082,2]
[363963264,1748947849217,-2648.57,0.00018082,2]
[363963266,1748947849227,-595.28,0.00018082,2]
[363963268,1748947849237,-370.0,0.00018082,2]
[363963270,1748947849247,-440.0,0.00018082,2]
[363963272,1748947849257,-2410.62,0.00018082,2]
[363963274,1748947849267,-440.0,0.00018082,2]
[363963276,1748947849276,-4321.72,0.00018082,2]
[363963277,1748947849289,-450.66,0.00018082,2]
[363963279,1748947849299,-440.0,0.00018082,2]
[363963281,1748947849310,-440.0,0.00018082,2]
[363963283,1748947849320,-897.07,0.00018082,2]
[363963285,1748947849330,-2663.09,0.00018082,2]
[363963287,1748947849339,-852.36,0.00018082,2]
[363963289,1748947849350,-440.0,0.00018082,2]
[363963291,1748947849360,-440.0,0.00018082,2]
[363963293,1748947849370,-1482.71,0.00018082,2]
[363963295,1748947849380,-454.62518768,0.00018082,2]
[363963297,1748947849391,-636.06,0.00018082,2]
[363963299,1748947849401,-440.0,0.00018082,2]
[363963301,1748947849411,-440.0,0.00018082,2]
[363963313,1748947849528,-440.0,0.00018082,2]
[363963315,1748947849538,-2135.98,0.00018082,2]
[363963317,1748947849548,-523.2572686,0.00018082,2]
[363963319,1748947849558,-369.08,0.00018082,2]
[363963321,1748947849568,-397.83255718,0.00018082,2]
[363963323,1748947849578,-905.57,0.00018082,2]
[363963325,1748947849589,-440.0,0.00018082,2]
[363963327,1748947849598,-808.85,0.00018082,2]
[363963329,1748947849607,-1071.18,0.00018082,2]
[363963331,1748947849617,-645.4,0.00018082,2]
[363963333,1748947849627,-440.0,0.00018082,2]
[363963335,1748947849637,-440.0,0.00018082,2]
[363963337,1748947849646,-466.39,0.00018082,2]
[363963339,1748947849657,-440.0,0.00018082,2]
[363963340,1748947849667,-440.0,0.00018082,2]
[363963342,1748947849676,-440.0,0.00018082,2]
[363963344,1748947849687,-440.0,0.00018082,2]
[363963346,1748947849697,-682.03,0.00018082,2]
[363963348,1748947849707,-470.49,0.00018082,2]
[363963350,1748947849717,-957.6,0.00018082,2]
[363963352,1748947849727,-1228.71,0.00018082,2]
[363963354,1748947849736,-440.0,0.00018082,2]
[363963356,1748947849747,-440.0,0.00018082,2]
[363963358,1748947849756,-474.46508162,0.00018082,2]
[363963360,1748947849767,-440.0,0.00018082,2]
[363963362,1748947849776,-556.38,0.00018082,2]
[363963364,1748947849786,-316.7847904,0.00018082,2]
[363963366,1748947849795,-1121.18,0.00018082,2]
[363963368,1748947849805,-440.0,0.00018082,2]